Cogmind - Beta 13 @@@ ROGUE MODE // 2024.04.28 @ 23:01:46 Player: Exceptionally Mediocre Result: Destroyed by G-47 Trooper with Particle Gun Performance ------------- Evolutions (3) 1500 Regions Visited (7) 1400 Robots Destroyed (108) 540 Value Destroyed (3000) 3000 Prototype IDs (27) 540 Alien Tech Used (0) 0 Bonus (651) 651 TOTAL SCORE: 7631 Bonus ------- High Alert Combat Kills 11 Follower Combat Kills 140 Entered Garrisons 200 Aligned with FarCom 300 Cogmind --------- Core Integrity 0/700 Matter 93/300 Energy 100/100 System Corruption 5% Temperature Cool (18) Movement Core (50) Location -7/Garrison Parts ------- > --- POWER (1) -------- (None) > --- PROPULSION (4) --- (None) > --- UTILITY (5) ------ Improved Heat Sink Target Analyzer > --- WEAPON (3) ------- Spear > --- INVENTORY (5) ---- Humpback Bomb Drone Bay Peak State ------------ > --- POWER ------------ Improved Deuterium Engine > --- PROPULSION ------- Light Treads Light Treads Armored Huge Wheel > --- UTILITY ---------- Cooling System Humpback Target Analyzer Medium Reactive Plating > --- WEAPON ----------- Katana Katana Katana > --- INVENTORY -------- Light Nuclear Core Improved Deuterium Engine Micro Nuclear Core Micro Nuclear Core Improved Heat Sink Humpback Humpback Medium Battery Large Matter Pod Experimental Sensor Array Improved Signal Interpreter Improved Signal Interpreter Utility Shielding Hardened Medium Armor Plating Improved Light Armor Plating Improved Light Armor Plating Hacking Suite Bomb Drone Bay Guided Plasma Cannon Gauss Rifle Assault Cannon Assault Cannon Assault Cannon Grenade Launcher Mini Grenade Launcher Missile Launcher Scythe Axe Greatsword Spear [Rating: 45] Favorites ----------- Power Ion Engine Engine Ion Engine Propulsion Light Treads Treads Light Treads Wheel Armored Huge Wheel Hover Unit Antigrav System Utility Humpback Device Structural Scanner Storage Humpback Processor Improved Targeting Computer Protection Hardened Medium Armor Plating Weapon Assault Rifle Energy Gun Medium Laser Energy Cannon Advanced Beam Cannon Ballistic Gun Assault Rifle Ballistic Cannon Assault Cannon Launcher Mini Grenade Launcher Slashing Weapon Katana Piercing Weapon Spear Build | -11 -10 -10 -10 -9 -8 -7 -7 ------- Run | Yrd Mat Min Exi Min Mat Fac Gar Slots Evolved 6 | . . . . . 4 2 . Power . | . . . . . . . . Propulsion 2 | . . . . . 2 . . Utility 3 | . . . . . 2 1 . Weapon 1 | . . . . . . 1 . Parts Attached 103 | 8 10 6 1 . 35 24 19 Power 13 | 1 . 2 . . 6 2 2 Engine 13 | 1 . 2 . . 6 2 2 Core . | . . . . . . . . Reactor . | . . . . . . . . Propulsion 33 | 2 2 1 . . 15 10 3 Treads 29 | 2 2 1 . . 15 7 2 Leg . | . . . . . . . . Wheel 3 | . . . . . . 3 . Hover 1 | . . . . . . . 1 Flight . | . . . . . . . . Utility 27 | 2 2 . 1 . 7 6 9 Device 6 | 1 1 . . . 2 1 1 Storage 6 | 1 1 . 1 . . 1 2 Processor 2 | . . . . . 1 . 1 Hackware . | . . . . . . . . Protection 13 | . . . . . 4 4 5 Artifact . | . . . . . . . . Weapon 30 | 3 6 3 . . 7 6 5 Energy Gun 3 | 2 . . . . 1 . . Energy Cannon 1 | . . . . . 1 . . Ballistic Gun 13 | 1 5 3 . . 3 1 . Ballistic Cannon 5 | . . . . . 2 1 2 Launcher 4 | . 1 . . . . 1 2 Special Weapon . | . . . . . . . . Impact Weapon . | . . . . . . . . Slashing Weapon 3 | . . . . . . 3 . Piercing Weapon 1 | . . . . . . . 1 Special Melee Weapon . | . . . . . . . . Unidentified Prototypes 4 | . . . . . 4 . . Parts Lost 41 | . . 3 . . 8 11 19 Power 5 | . . 1 . . . 1 3 Propulsion 19 | . . . . . 6 8 5 Utility 10 | . . . . . 2 2 6 Weapon 7 | . . 2 . . . . 5 Highest Loss Streak 12 | . . 3 . . 6 9 12 To Critical Strikes . | . . . . . . . . Average Slot Usage (%) 88 | . 99 99 92 85 85 85 69 Engine 11 | . 14 13 14 14 9 7 6 Treads 28 | . 27 28 28 28 34 24 6 Device 4 | . 14 14 6 . 2 . 5 Storage 11 | . 14 14 13 14 9 7 6 Processor 3 | . . . . . 7 7 6 Protection 3 | . . . . . 4 12 5 Ballistic Gun 17 | . 26 27 28 28 9 . . Ballistic Cannon 4 | . . . . . 7 16 1 Slashing Weapon 1 | . . . . . . 5 19 Naked Turns . | . . . . . . . . Heaviest Build 251 | 12 49 50 208 208 227 251 240 Greatest Support 88 | 40 40 40 40 40 80 88 38 Greatest Overweight (x) 8 | . 1 1 5 5 5 8 8 Average Overweight (x) 2 | . . 1 2 5 2 3 6 Largest Inventory Capacity 35 | 8 20 20 35 35 35 35 35 Average Capacity 30 | 7 19 20 27 35 35 35 32 Most Carried 35 | 3 20 20 28 35 35 35 35 Average Carried 27 | 1 14 19 21 32 34 33 30 Final Capacity 35 | 8 20 20 35 35 35 35 5 Final Carried 35 | 2 20 20 27 35 35 34 4 Class Distribution -------------------- 61% | Hauler-Mutant 28% | Mutant 8% | Hauler-Tank Dominant Class ---------------- Mutant | -10/Materials Mutant | -10/Mines Hauler-Mutant | -10/Exiles Hauler-Mutant | -9/Mines Hauler-Mutant | -8/Materials Hauler-Tank | -7/Factory Hauler-Mutant | -7/Garrison Resources | -11 -10 -10 -10 -9 -8 -7 -7 ----------- Run | Yrd Mat Min Exi Min Mat Fac Gar Matter Collected 2629 | 275 643 118 10 22 1001 487 73 Remotely . | . . . . . . . . Salvage Created 3380 | 93 1006 116 . 17 1243 711 194 Parts 215 | 8 72 4 . . 85 34 12 Haulers Intercepted 6 | . 2 . . . 3 1 . Recyclers Shooed 5 | . 5 . . . . . . Parts Field Recycled . | . . . . . . . . Retrieved Matter . | . . . . . . . . Parts Self-Destructed . | . . . . . . . . Prevented . | . . . . . . . . Kills | -11 -10 -10 -10 -9 -8 -7 -7 ------- Run | Yrd Mat Min Exi Min Mat Fac Gar Combat Hostiles Destroyed 66 | . 14 2 . 1 26 15 8 Melee 12 | . . . . . . 10 2 Guns 34 | . 12 2 . 1 19 . . Cannons 14 | . . . . . 7 5 2 AOE 6 | . 2 . . . . . 4 Classes Destroyed 16 | 2 8 1 . 1 1 3 . Worker 15 | . 4 . . . 8 3 . Builder 7 | . 5 . . . 2 . . Tunneler 2 | 2 . . . . . . . Hauler 6 | . 2 . . . 3 1 . Recycler 3 | 1 2 . . . . . . Mechanic 1 | . 1 . . . . . . Operator 4 | . 3 . . . 1 . . Watcher 5 | . 1 . . . 3 1 . Swarmer 17 | . 3 . . . 10 . 4 Grunt 32 | . 11 . . . 12 9 . Duelist 1 | . . . . . . 1 . Sentry 8 | . . 2 . . 3 . 3 Hunter 2 | . . . . . . 1 1 Programmer 4 | . . . . . . 4 . Heavy 1 | . . . . . 1 . . Assembled 1 | . . . . 1 . . . Best Kill Streak 5 | 3 4 1 . 1 5 5 4 Combat Bots Only 4 | . 3 1 . 1 4 2 4 Max Kills in Single Turn 2 | 1 1 1 . 1 1 2 2 Gunslinging . | . . . . . . . . Exploded 2 | . 1 . . . . . 2 Melee 1 | . . . . . . 1 1 Uniques/NPCs Destroyed . | . . . . . . . . Combat | -11 -10 -10 -10 -9 -8 -7 -7 -------- Run | Yrd Mat Min Exi Min Mat Fac Gar Hostile Shots Fired 902 | . 73 34 . . 199 231 365 Missed 278 | . 22 7 . . 60 60 129 Damage Taken 8562 | . 529 395 . . 2470 2813 2355 Core 947 | . 72 29 . . 144 211 491 Absorbed by Shields . | . . . . . . . . Redirected to Shielding 52 | . . . . . . . 52 Ignored by Resistances 130 | . . . . . . 10 120 Regen/Repaired (Parts) 406 | . 224 . . . 182 . . Core Remaining (%) 77 | 100 . . . 59 73 . . Volleys Fired 311 | 11 106 13 . 3 118 35 25 Largest 3 | 2 2 2 . 2 2 3 1 Hottest 132 | 70 70 40 . 40 88 132 44 Shots Fired 580 | 22 208 25 . 6 236 59 24 Gun 441 | 22 206 25 . 6 180 2 . Cannon 130 | . . . . . 56 57 17 Launcher 9 | . 2 . . . . . 7 Special . | . . . . . . . . Kinetic 525 | 11 197 25 . 6 210 59 17 Thermal 46 | 11 9 . . . 26 . . Explosive 9 | . 2 . . . . . 7 Electromagnetic . | . . . . . . . . Robot Hit Streak 18 | 6 13 17 . 5 18 10 10 Robot Miss Streak 6 | 3 6 1 . 2 3 4 2 Penetration Max 1 | . . . . . . 1 . Secondary Targets 8 | . 5 . . . 3 . . Max Gunslinging Chain 1 | . 1 . . . 1 . . Shots Hit Robots 421 | 13 120 22 . 3 156 77 30 Core Hits 181 | 6 56 5 . 1 70 26 17 Critical Kills 2 | . 1 . . . 1 . . Critical Parts Destroyed 3 | . 2 . . . 1 . . Critical Strikes 20 | . 3 . . . 4 7 6 Burn 1 | . . . . . 1 . . Destroy 5 | . 3 . . . 2 . . Blast 4 | . . . . . 1 2 1 Sever 8 | . . . . . . 5 3 Impale 2 | . . . . . . . 2 Melee Attacks 66 | . . . . . . 48 18 Impact . | . . . . . . . . Slashing 63 | . . . . . . 48 15 Piercing 3 | . . . . . . . 3 Sneak Attacks 3 | . . . . . . 3 . Combat Hostiles . | . . . . . . . . Follow-up Attacks 7 | . . . . . . 6 1 Damage Inflicted 8159 | 127 1550 273 . 33 2676 2276 1224 Guns 3625 | 127 1432 273 . 33 1722 38 . Cannons 2200 | . . . . . 954 1009 237 Explosions 662 | . 118 . . . . . 544 Melee 1648 | . . . . . . 1205 443 Ramming 24 | . . . . . . 24 . Kinetic 5352 | 52 1356 273 . 33 2354 1047 237 Thermal 473 | 75 76 . . . 322 . . Explosive 662 | . 118 . . . . . 544 Electromagnetic . | . . . . . . . . Impact . | . . . . . . . . Slashing 1586 | . . . . . . 1205 381 Piercing 62 | . . . . . . . 62 Highest Corruption 5 | . . . . . . 5 5 Average Corruption 4 | . . . . . . 4 5 Corruption Purged . | . . . . . . . . Corruption Blocked . | . . . . . . . . Effects 18 | . . . . . . 8 10 Message Errors 5 | . . . . . . 2 3 Matter Fused 2 | . . . . . . 1 1 Heat Flow Errors 1 | . . . . . . 1 . Energy Discharges 3 | . . . . . . 2 1 Parts Rejected 2 | . . . . . . 1 1 Data Loss (minor) 3 | . . . . . . 1 2 Data Loss (major) 1 | . . . . . . . 1 Weapon Failures 1 | . . . . . . . 1 Overload Shots . | . . . . . . . . Overflow Damage 180 | . . . . . . 133 47 Projectiles 45 | . . . . . . 45 . Explosions 47 | . . . . . . . 47 Melee 88 | . . . . . . 88 . Knockbacks 14 | . . . . . 5 9 . Impact . | . . . . . . . . Kinetic 13 | . . . . . 5 8 . Secondary 1 | . . . . . . 1 . Self-Inflicted Damage . | . . . . . . . . Shots . | . . . . . . . . Rammed 2 | . . . . . . 2 . Targets Rammed 2 | . . . . . . 2 . Kicked . | . . . . . . . . Crushed . | . . . . . . . . Highest Temperature 510 | 80 143 4 . . 436 510 11 Average Temperature 97 | 31 44 2 . . 83 166 6 Received Heat Transfer 3090 | . 219 117 . . 999 1224 531 Effects 10 | . . . . . 5 5 . Shutdowns 1 | . . . . . . 1 . Energy Bleed 2 | . . . . . 1 1 . Interference 5 | . . . . . 4 1 . Damage (minor) 2 | . . . . . . 2 . Siege Activations . | . . . . . . . . Robots Corrupted . | . . . . . . . . Combat Hostiles . | . . . . . . . . Parts Fried . | . . . . . . . . Impact Corruptions . | . . . . . . . . Robots Melted . | . . . . . . . . Combat Hostiles . | . . . . . . . . Parts Melted . | . . . . . . . . Heat Transferred 1110 | 222 222 . . . 666 . . Parts Sabotaged . | . . . . . . . . Parts Stolen . | . . . . . . . . Parts Stripped . | . . . . . . . . Power Chain Reactions . | . . . . . . . . Alert | -11 -10 -10 -10 -9 -8 -7 -7 ------- Run | Yrd Mat Min Exi Min Mat Fac Gar Peak Influence 414 | 15 176 35 . 46 414 254 295 Initial 165 | . 9 . . . . 165 87 Average 101 | 4 64 1 . 4 218 84 177 Maximum Alert Level 2 | . . . . . 2 1 1 Low Security (%) 79 | 100 100 100 . 100 43 95 47 Level 1 20 | . . . . . 56 4 52 Level 2 . | . . . . . . . . Level 3 . | . . . . . . . . Level 4 . | . . . . . . . . Level 5 . | . . . . . . . . High Security . | . . . . . . . . Max Security . | . . . . . . . . Squads Dispatched 17 | . 5 . . 1 5 6 . Investigation 7 | . 2 . . 1 3 1 . Extermination 3 | . . . . . . 3 . Reinforcement 7 | . 3 . . . 2 2 . Assault . | . . . . . . . . Garrison . | . . . . . . . . Intercept . | . . . . . . . . Searches Triggered . | . . . . . . . . Construction Impeded . | . . . . . . . . Haulers Reinforced 2 | . . . . . . 2 . Active Scanning Responses . | . . . . . . . . Cargo Convoy Interrupts . | . . . . . . . . Stealth | -11 -10 -10 -10 -9 -8 -7 -7 --------- Run | Yrd Mat Min Exi Min Mat Fac Gar Distress Signals 2 | . . . . . 1 1 . Communications Jammed . | . . . . . . . . Distress Signals . | . . . . . . . . Times Spotted 120 | . 40 3 . 6 40 16 15 Peak Tracking Total 7 | . 6 2 . 4 7 5 7 Tactical Retreats 4 | . 1 . . . 1 . 2 Traps | -11 -10 -10 -10 -9 -8 -7 -7 ------- Run | Yrd Mat Min Exi Min Mat Fac Gar Traps Triggered 5 | . 1 . . . 1 1 2 Indirectly . | . . . . . . . . Trap Hack Attempts . | . . . . . . . . Triggered . | . . . . . . . . Disarmed . | . . . . . . . . Reprogrammed . | . . . . . . . . Reused . | . . . . . . . . Traps Extracted . | . . . . . . . . Installed . | . . . . . . . . Triggered . | . . . . . . . . Machines | -11 -10 -10 -10 -9 -8 -7 -7 ---------- Run | Yrd Mat Min Exi Min Mat Fac Gar Machines Disabled 5 | . . . . . 3 1 1 Max in Single Turn 1 | . . . . . 1 1 1 Garrison Relay 1 | . . . . . . . 1 Machines Repaired . | . . . . . . . . Machines Dismantled . | . . . . . . . . Machines Sabotaged . | . . . . . . . . Overloaded Fab Kills . | . . . . . . . . Hacking | -11 -10 -10 -10 -9 -8 -7 -7 --------- Run | Yrd Mat Min Exi Min Mat Fac Gar Machines Accessed 20 | . 5 1 1 1 8 4 . Terminals 11 | . 4 . . . 5 2 . Fabricators . | . . . . . . . . Repair Stations 2 | . 1 . . . 1 . . Recycling Units 2 | . . . . . 1 1 . Scanalyzers 1 | . . . . . 1 . . Garrison Access 1 | . . . . . . 1 . Total Hacks 53 | . 16 1 1 1 26 8 . Successful 31 | . 12 1 1 1 14 2 . Failed 22 | . 4 . . . 12 6 . Catastrophic 3 | . . . . . 1 2 . Database Lockouts . | . . . . . . . . Manual 30 | . 10 . 1 . 13 6 . Terminals 30 | . 11 . . . 13 6 . Fabricators . | . . . . . . . . Repair Stations 11 | . 5 . . . 6 . . Recycling Units 5 | . . . . . 4 1 . Scanalyzers 3 | . . . . . 3 . . Garrison Access 1 | . . . . . . 1 . Terminal Hacks 7 | . 3 1 1 1 1 . . Robot Analysis 1 | . 1 . . . . . . Open Door 2 | . . 1 . 1 . . . Branch Access Points 1 | . 1 . . . . . . Terminal Index 1 | . 1 . . . . . . Scanalyzer Index 1 | . . . . . 1 . . Derelict Proto ID Bank 1 | . . . 1 . . . . Fabricator Hacks . | . . . . . . . . Repair Station Hacks 11 | . 5 . . . 6 . . Scan Component 6 | . 3 . . . 3 . . Repair 5 | . 2 . . . 3 . . Recycling Unit Hacks . | . . . . . . . . Scanalyzer 3 | . . . . . 3 . . Insert Component 2 | . . . . . 2 . . Analyze 1 | . . . . . 1 . . Garrison Access Hacks 1 | . . . . . . 1 . Unlock Access 1 | . . . . . . 1 . Unauthorized Hacks 9 | . 4 . . . 4 1 . Terminals 9 | . 4 . . . 4 1 . Botnet 9 | . 4 . . . 4 1 . Fabricators . | . . . . . . . . Repair Stations . | . . . . . . . . Recycling Units . | . . . . . . . . Scanalyzers . | . . . . . . . . Garrison Access . | . . . . . . . . Data Cores Recovered . | . . . . . . . . Used . | . . . . . . . . Hacking Detections 14 | . 3 . . . 7 4 . Full Trace Events 5 | . 1 . . . 3 1 . Feedback Events . | . . . . . . . . Feedback Blocked . | . . . . . . . . Robot Schematics Acquired . | . . . . . . . . Robots Built . | . . . . . . . . Authchips . | . . . . . . . . Time . | . . . . . . . . Total Robot Build Rating . | . . . . . . . . Part Schematics Acquired 1 | . . . . . 1 . . Parts Built . | . . . . . . . . Authchips . | . . . . . . . . Time . | . . . . . . . . Total Part Build Rating . | . . . . . . . . Parts Repaired 5 | . 2 . . . 3 . . Time 136 | . 52 . . . 84 . . Parts Recycled . | . . . . . . . . Recycled Matter . | . . . . . . . . Retrieved Matter . | . . . . . . . . Retrieved Components . | . . . . . . . . Parts Scanalyzed 1 | . . . . . 1 . . Part Schematics Acquired 1 | . . . . . 1 . . Parts Damaged . | . . . . . . . . Bothacking | -11 -10 -10 -10 -9 -8 -7 -7 ------------ Run | Yrd Mat Min Exi Min Mat Fac Gar Used RIF Installer . | . . . . . . . . Robots Hacked . | . . . . . . . . Non-combat . | . . . . . . . . Combat . | . . . . . . . . Robot Hacks Applied . | . . . . . . . . Relay Couplers Released 7 | . . . . . . . 7 Machine Destruction 3 | . . . . . . . 3 Programmers 4 | . . . . . . . 4 Fabnet Peak Effective % . | . . . . . . . . Robots Rewired . | . . . . . . . . Allies Hacked 1 | . . . . . . . 1 Hacks Repelled . | . . . . . . . . Allies | -11 -10 -10 -10 -9 -8 -7 -7 -------- Run | Yrd Mat Min Exi Min Mat Fac Gar Total Allies 4 | . . . . 3 . . 1 Largest Group 3 | . . . . 3 1 . 1 Highest-Rated Group 40 | . . . . 40 16 . 25 Highest-Rated Ally 25 | . . . . 16 16 . 25 Total Orders . | . . . . . . . . Ally Attacks 48 | . . . . 40 4 . 4 Total Damage 662 | . . . . 459 35 . 168 Kills 6 | . . . . 5 . . 1 Allies Corrupted . | . . . . . . . . Allies Melted . | . . . . . . . . Intel | -11 -10 -10 -10 -9 -8 -7 -7 ------- Run | Yrd Mat Min Exi Min Mat Fac Gar Robot Analysis Total 1 | . 1 . . . . . . Derelict Logs Recovered 1 | . . . . 1 . . . Drone Launches . | . . . . . . . . Drone Recoveries . | . . . . . . . . Exploration | -11 -10 -10 -10 -9 -8 -7 -7 ------------- Run | Yrd Mat Min Exi Min Mat Fac Gar Turns Passed 12017 | 119 2127 590 1049 2561 3403 1726 442 Spaces Moved 3282 | 49 749 224 313 454 862 483 148 Core 7 | 4 . . . . . . 3 Treads 3026 | 45 749 224 313 454 862 379 . Legs . | . . . . . . . . Wheels 244 | . . . . . . 104 140 Hover 5 | . . . . . . . 5 Flight . | . . . . . . . . Fastest Speed 50 | 50 160 240 160 560 320 180 120 Average Speed 321 | 151 230 240 328 560 333 301 205 Slowest Speed 560 | 160 240 240 560 560 560 480 400 Overloaded Moves . | . . . . . . . . Propulsion Burnouts . | . . . . . . . . Robots Hopped . | . . . . . . . . Cave-ins Triggered . | . . . . . . . . Exploration Rate (%) 48 | 5 96 56 61 71 59 16 21 Regions Visited 7 Branch Regions 3 Pre-discovered Areas . | . . . . . . . . Known Exits Taken 3 | . 1 . . . 1 1 . Unknown Exits Taken 4 | 1 . 1 1 1 . . . Scrap Searched 3 | . . 1 . 2 . . . Spaces Dug . | . . . . . . . . Terrain Destroyed 41 | . 12 . . . 7 1 21 Melee . | . . . . . . . . Projectile 8 | . . . . . 7 1 . AOE 33 | . 12 . . . . . 21 Terrain Rammed . | . . . . . . . . Walls Destroyed . | . . . . . . . . Machines Disabled . | . . . . . . . . Actions | -11 -10 -10 -10 -9 -8 -7 -7 --------- Run | Yrd Mat Min Exi Min Mat Fac Gar Total 4131 | 71 945 254 340 476 1177 634 234 Wait 181 | . 58 4 . . 85 34 . Move 3275 | 48 748 223 312 453 861 482 148 Hop . | . . . . . . . . Pick Up 116 | 4 19 4 22 13 40 10 4 Fast Attach 19 | 5 1 . 1 . 4 4 4 Attach 43 | 2 1 3 . . 11 13 13 Detach 9 | . 1 . 1 . . 3 4 Swap 41 | 1 8 3 . . 20 7 2 Drop 61 | . 3 4 4 7 38 4 1 Fire 311 | 11 106 13 . 3 118 35 25 Melee 57 | . . . . . . 40 17 Ram . | . . . . . . . . Kick . | . . . . . . . . Crush 2 | . . . . . . 2 . Escape Stasis 16 | . . . . . . . 16 Rewire . | . . . . . . . . Trap . | . . . . . . . . Miscellaneous . | . . . . . . . . Route ------- -11/Scrapyard -10/Materials (discovered 4 exits: [*Mat x2] / *Min / [*Sub]) -10/Mines (discovered 2 exits: [*Mat] / *Exi) -10/Exiles -9/Mines -8/Materials (discovered 2 exits: *Fac x2) -7/Factory -7/Garrison History --------- Turn | Location | Event 16 | -11/Scrapyard | Discovered new exit (range 16) 120 | -11/Scrapyard | Entered Materials 315 | -10/Materials | Build established: Mutant 403 | -10/Materials | Identified exit to Mines 552 | -10/Materials | Discovered new exit (range 7) 986 | -10/Materials | Discovered new exit (range 17) 1890 | -10/Materials | Discovered new exit (range 15) 2176 | -10/Materials | Repaired Lgt. Treads 2203 | -10/Materials | Repaired Lgt. Treads 2247 | -10/Materials | Entered Mines 2308 | -10/Mines | Assembled infested the area 2384 | -10/Mines | Found the Drone Emporium 2396 | -10/Mines | Found Prototype Device 2437 | -10/Mines | Met 8R-AWN 2474 | -10/Mines | Discovered new exit (range 5) 2669 | -10/Mines | Lost 3 parts (1p2w) 2827 | -10/Mines | Discovered new exit (range 5) 2837 | -10/Mines | Entered Exiles 2895 | -10/Exiles | Welcomed by 8R-AWN 2936 | -10/Exiles | Met EX-HEX 3001 | -10/Exiles | Met EX-BIN 3034 | -10/Exiles | Aligned with FarCom system 3037 | -10/Exiles | Given EX-Vault access code 3092 | -10/Exiles | Opened EX-Vault 3140 | -10/Exiles | Found Gui. Plasma Cannon 3187 | -10/Exiles | Warned to stay clear of 0b10 Research branches 3257 | -10/Exiles | Met EX-DEC 3644 | -10/Exiles | Build established: Hauler-Mutant 3835 | -10/Exiles | Discovered new exit (range 11) 3886 | -10/Exiles | Left Exiles lab with Gui. Plasma Cannon 3886 | -10/Exiles | Entered Mines 4012 | -9/Mines | Assisted by bots powering up and referring to "LRC-V3" 4140 | -9/Mines | YI-UF0 nonchalantly dropped a Grenade Launcher on the ground 4375 | -9/Mines | Found a damaged Exp. Sensor Array with a note attached 4386 | -9/Mines | Found Prototype Device 5328 | -9/Mines | Discovered new exit (range 9) 5396 | -9/Mines | Learned 2 Materials zone layouts 5772 | -9/Mines | Excavation squad dispatched 5772 | -9/Mines | A large section of the Mines collapsed 6144 | -9/Mines | Met a Derelict shopkeep closing up shop 6447 | -9/Mines | Entered Materials 6447 | -8/Materials | Accompanied by 1 ally 6447 | -8/Materials | Evolved 4 slots: Propulsion x2, Utility x2 6448 | -8/Materials | Identified exit to Factory 6604 | -8/Materials | Repaired Lgt. Treads 6632 | -8/Materials | Repaired Lgt. Treads 6665 | -8/Materials | Repaired Imp. Targeting Computer 8610 | -8/Materials | Identified Exp. Sensor Array 8706 | -8/Materials | Lost 6 parts (5n1u) 9741 | -8/Materials | Discovered exit to Factory (range 16) 9850 | -8/Materials | Entered Factory 9850 | -7/Factory | Evolved 2 slots: Utility x1, Weapon x1 10425 | -7/Factory | Build established: Hauler-Tank 11300 | -7/Factory | Lost 9 parts (7n2u) 11472 | -7/Factory | Build established: Hauler-Mutant 11574 | -7/Factory | Identified exit to Garrison 11576 | -7/Factory | Entered Garrison 11639 | -7/Garrison | Rescued a captive Derelict 11726 | -7/Garrison | Triggered checkpoint 11777 | -7/Garrison | Garrison Relay disabled 11894 | -7/Garrison | Triggered checkpoint 11927 | -7/Garrison | Core integrity fell below 50% 11999 | -7/Garrison | Lost 12 parts (1p3n5u3w) 12010 | -7/Garrison | Core integrity fell below 20% 12018 | -7/Garrison | Destroyed by G-47 Trooper with Particle Gun Last Messages --------------- 11965_ Utility Shielding destroyed. 11968_ Humpback destroyed. 11969_ Extracted 143 energy. 11970_ Extracted 5 energy. 11977_ Penetrated by Slug. 11982_ H-55 Commando destroyed. 11991_ Acquired Antigrav System. 11997_ =>E>:AQ1ZJP31A1CV= & 11997_ Acquired Spear. 11999_ The unstable cave ceiling collapses. 11999_ Lrg. Matter Pod crushed. 12000_ Antigrav System destroyed. 12006_ Imp. Light Armor Plating destroyed. 12010_ L-41 Fighter suffers critical hit (Impale). 12010_ Assault Cannon destroyed. 12012_ Katana destroyed. 12016_ L-41 Fighter suffers critical hit (Impale). 12018_ Imp. Deuterium Engine destroyed. Map ----- +----------------------------------------------------+ | ?????????????????????????????????????????????????? | | ?????????????????????????????????????????????????? | | ?????????????????????????????????????????????????? | | ?????????????????????????????????????????????????? | | ?????????????????????????????????????????????????? | | ?????????????????????????????????????????????????? | | ?????????????????????????????????????????????????? | | ?????????????????????????????????????????????????? | | ?????????????????????????????????????????????????? | | ?????????????????????????????????????????????????? | | ?????????????????????????????????????????????????? | | ?????????????????????????????????#??b????????????? | | ???????????????????????????????? ##??????????????? | | ???????????????????????????????? ?? ?????????? | | ???????????????????????????????? ?? ????????? | | ???????????????????????????????? ? ????????? | | ??????????????????????????????? ## ^ #?????????? | | ??????????????????????????????? ## ???????? | | ??????????????????????????????? ????????? | | ??????????????????????????????? ?????????? | | ?????????????????????????????? ?????????? | | ?????????????????????????###?? ? ???????? | | ?????????????????????????# ###%g ## #?????????? | | ???????????????????########]//g ## #????? | | ???????????????????# !** /g = ????? | | ???????????????????# !@l!%[/ %*% ????? | | ???????????????????# /**!!!% *[%! #????? | | ???????????????????# ###!#*[ % # % ####??????? | | ???????????????????# #?##] # ###?? #?????????? | | ???????????######??# #??##### #????????????????? | | ???????????#"# #??# #????????#????????????????? | | ???????????#"! #??# #?????????????????????????? | | ???????????# ! #??# #?????????????????????????? | | ???????????#"! #??# #?????????????????????????? | | ???????????#"# #??# #?????????????????????????? | | ???????????### #??# #?????????????????????????? | | ?????????????# #??# #?????????????????????????? | | ?????????????# #??# #?????????????????????????? | | ???????????### #??# #?????????????????????????? | | ???????????# ! #??# #?????????????????????????? | | ???????????#[%* #??# ^#?????????????????????????? | | ???????????#! #??# #?????????????????????????? | | ???????????### #??# ^#?????????????????????????? | | ?????????????# #### ^^#?????????????????????????? | | ?????????????# #?????????????????????????? | | ?????????????# #?????????????????????????? | | ??????###????####### #?????????????????????????? | | ??????# ##?????????# #?????????????????????????? | | ?????##% ########### #?????????????????????????? | | ?????# [[ #?????????????????????????? | +----------------------------------------------------+ Best States ------------- Heat Dissipation 56 Energy Generation 16 Energy Capacity 290 Matter Stores 300 Matter Capacity 300 Sight Range 16 Terrain Scan Range 16 Terrain Scan Density 10 Armor Coverage 450 Resistance: KI 30 Utility Shielding 33 Evasion (%) 40 Targeting Accuracy 6 Target Analysis 5 Recoil Reduction 4 Item Schematics ----------------- Greatsword | -8/Materials | Scanalyzed Robot Schematics ------------------ None Fabricated ------------ Nothing Alien Tech Used ----------------- None Achievements -------------- None Challenges ------------ None Game ------ Seed WarpSubdwellerWheel Manual? 0 Play Time 00:59:53 Cumulative 134.0 hours Start 2024.04.28 @ 21:56:15 End 2024.04.28 @ 23:01:46 Sessions 1 Manual Loads 0 Difficulty Rogue Special Mode None Game No. 153 Rogue 153 Adventurer 0 Explorer 0 Win Type - Total 0 Types 0/0/0/0/0/0/0/0/0 Lore% 30 Gallery% 58 Achievement% 41 Wizard Run 0 Options --------- Layout 1 ASCII 0 Keyboard 1 Movement Vi Keybinds 0 Fullscreen 1 Font 24/Smallcaps Map View 50x35 Zoom Use 0% Tactical HUD 1 Map Filters NONE Filters NONE Steam 1 RUN: b9f32327-5a5e-408e-9d07-8ed6d0fe3342